[Event "*** SCC Grand Prix: Titled Tuesday Blitz"]
[Site "Chess.com"]
[Date "2020.10.06"]
[Round "8"]
[White "thisjuan"]
[Black "GustavoJuarezF"]
[Result "0-1"]
[WhiteElo "2192"]
[BlackElo "2038"]
[TimeControl "180+1"]
[EndTime "11:33:35 PDT"]
[Termination "GustavoJuarezF won on time"]

1. c4 {[%clk 0:03:00.9]} 1... e5 {[%clk 0:02:57.9]} 2. g3 {[%clk 0:03:00.5]}
2... Nc6 {[%clk 0:02:57.4]} 3. Nc3 {[%clk 0:02:58.4]} 3... g6 {[%clk 0:02:57.3]}
4. Nf3 {[%clk 0:02:47]} 4... Bg7 {[%clk 0:02:56.8]} 5. d4 {[%clk 0:02:20.9]}
5... exd4 {[%clk 0:02:54.2]} 6. Nd5 {[%clk 0:02:11]} 6... h6 {[%clk 0:02:29.4]}
7. Bg2 {[%clk 0:01:26.9]} 7... Nge7 {[%clk 0:02:21.2]} 8. O-O {[%clk 0:01:19.9]}
8... d6 {[%clk 0:02:16.2]} 9. Nxe7 {[%clk 0:00:49.4]} 9... Qxe7 {[%clk
0:02:13.6]} 10. e3 {[%clk 0:00:49.6]} 10... dxe3 {[%clk 0:02:11.9]} 11. Bxe3
{[%clk 0:00:49.6]} 11... O-O {[%clk 0:02:10.5]} 12. Qd2 {[%clk 0:00:49.3]} 12...
Kh7 {[%clk 0:02:10.2]} 13. Rfe1 {[%clk 0:00:48.1]} 13... Ne5 {[%clk 0:02:07.9]}
14. Nxe5 {[%clk 0:00:46.3]} 14... Qxe5 {[%clk 0:02:05]} 15. b3 {[%clk
0:00:16.7]} 15... c6 {[%clk 0:01:56.6]} 16. Rad1 {[%clk 0:00:13.6]} 16... Bg4
{[%clk 0:01:52.1]} 17. f3 {[%clk 0:00:07.9]} 17... Bf5 {[%clk 0:01:38.2]} 18.
Qxd6 {[%clk 0:00:01.5]} 18... Qxd6 {[%clk 0:01:36.4]} 19. Rxd6 {[%clk 0:00:02]}
19... Rfe8 {[%clk 0:01:30.5]} 0-1

[Event "*** SCC Grand Prix: Titled Tuesday Blitz"]
[Site "Chess.com"]
[Date "2020.10.06"]
[Round "8"]
[White "northridgehawk"]
[Black "PawnEatingZombie"]
[Result "1-0"]
[WhiteElo "2306"]
[BlackElo "2190"]
[TimeControl "180+1"]
[EndTime "11:33:36 PDT"]
[Termination "northridgehawk won by resignation"]

1. e4 {[%clk 0:03:00.2]} 1... c6 {[%clk 0:02:59.9]} 2. d4 {[%clk 0:02:58]} 2...
d5 {[%clk 0:03:00.8]} 3. exd5 {[%clk 0:02:57.7]} 3... cxd5 {[%clk 0:03:00.8]} 4.
Bd3 {[%clk 0:02:58.6]} 4... Nc6 {[%clk 0:03:00.3]} 5. Ne2 {[%clk 0:02:58.8]}
5... Bg4 {[%clk 0:02:46.6]} 6. Nbc3 {[%clk 0:02:57.5]} 6... e6 {[%clk
0:02:43.6]} 7. f3 {[%clk 0:02:56.8]} 7... Bh5 {[%clk 0:02:43.1]} 8. Nf4 {[%clk
0:02:56.4]} 8... Bg6 {[%clk 0:02:40.6]} 9. Nxg6 {[%clk 0:02:56.3]} 9... hxg6
{[%clk 0:02:40.4]} 10. Be3 {[%clk 0:02:56.5]} 10... Nf6 {[%clk 0:02:39.9]} 11.
Qe2 {[%clk 0:02:53.2]} 11... Bd6 {[%clk 0:02:38.7]} 12. h4 {[%clk 0:02:51.9]}
12... Nh5 {[%clk 0:01:47.2]} 13. Bf2 {[%clk 0:02:41.7]} 13... Nf4 {[%clk
0:01:40.4]} 14. Qf1 {[%clk 0:02:40.8]} 14... Nb4 {[%clk 0:01:14.9]} 15. Bb5+
{[%clk 0:02:34.9]} 15... Kf8 {[%clk 0:01:14.9]} 16. O-O-O {[%clk 0:02:35]} 16...
a6 {[%clk 0:00:55.5]} 17. Ba4 {[%clk 0:02:33.2]} 17... b5 {[%clk 0:00:52.4]} 18.
Bb3 {[%clk 0:02:33.3]} 18... Qb6 {[%clk 0:00:30.9]} 19. g3 {[%clk 0:02:32.6]}
19... Nh5 {[%clk 0:00:31.1]} 20. f4 {[%clk 0:02:32]} 20... Nf6 {[%clk
0:00:30.3]} 21. Qe2 {[%clk 0:02:30.6]} 21... Rb8 {[%clk 0:00:29.1]} 22. Kb1
{[%clk 0:02:28.9]} 22... a5 {[%clk 0:00:26.1]} 23. a3 {[%clk 0:02:27.6]} 23...
Nc6 {[%clk 0:00:26.1]} 24. g4 {[%clk 0:02:25.4]} 24... a4 {[%clk 0:00:23.7]} 25.
Ba2 {[%clk 0:02:24.6]} 25... b4 {[%clk 0:00:19.6]} 26. Nxa4 {[%clk 0:02:24]}
26... Qa5 {[%clk 0:00:19.3]} 27. Bb3 {[%clk 0:02:23.4]} 27... bxa3 {[%clk
0:00:18.6]} 28. f5 {[%clk 0:02:20.7]} 28... Ne4 {[%clk 0:00:09.6]} 29. fxe6
{[%clk 0:02:17.2]} 29... Qxa4 {[%clk 0:00:09.6]} 30. Bxa4 {[%clk 0:02:04.8]}
30... Nc3+ {[%clk 0:00:08.1]} 31. Kc1 {[%clk 0:02:03.8]} 31... axb2+ {[%clk
0:00:07.9]} 32. Kd2 {[%clk 0:02:03.7]} 32... Nxe2 {[%clk 0:00:06.3]} 33. Bxc6
{[%clk 0:01:59.5]} 33... b1=Q {[%clk 0:00:03.4]} 34. Rxb1 {[%clk 0:01:58.8]}
34... Rxb1 {[%clk 0:00:03.2]} 35. Rxb1 {[%clk 0:01:59.5]} 1-0

[Event "*** SCC Grand Prix: Titled Tuesday Blitz"]
[Site "Chess.com"]
[Date "2020.10.06"]
[Round "8"]
[White "Ural_bogatyr"]
[Black "Zemerovv"]
[Result "1-0"]
[WhiteElo "2371"]
[BlackElo "2264"]
[TimeControl "180+1"]
[EndTime "11:33:43 PDT"]
[Termination "Ural_bogatyr won by resignation"]

1. e4 {[%clk 0:03:00.9]} 1... g6 {[%clk 0:03:00.2]} 2. d4 {[%clk 0:03:00.5]}
2... Bg7 {[%clk 0:03:01.1]} 3. Nc3 {[%clk 0:03:00.7]} 3... d6 {[%clk 0:03:01.2]}
4. h4 {[%clk 0:03:01.1]} 4... Nd7 {[%clk 0:03:01.8]} 5. h5 {[%clk 0:03:00.7]}
5... c5 {[%clk 0:03:01.7]} 6. Be3 {[%clk 0:02:59.1]} 6... cxd4 {[%clk
0:02:59.2]} 7. Bxd4 {[%clk 0:02:59]} 7... Ngf6 {[%clk 0:02:59.1]} 8. h6 {[%clk
0:02:56.1]} 8... Bf8 {[%clk 0:02:58.1]} 9. Nf3 {[%clk 0:02:54.4]} 9... e5 {[%clk
0:02:57.9]} 10. Be3 {[%clk 0:02:53.6]} 10... Be7 {[%clk 0:02:58]} 11. Bc4 {[%clk
0:02:51.3]} 11... O-O {[%clk 0:02:57.1]} 12. Qd2 {[%clk 0:02:50.2]} 12... a6
{[%clk 0:02:56.7]} 13. O-O-O {[%clk 0:02:41.4]} 13... b5 {[%clk 0:02:56.4]} 14.
Bd5 {[%clk 0:02:41.4]} 14... b4 {[%clk 0:02:52.4]} 15. Bxa8 {[%clk 0:02:37.8]}
15... bxc3 {[%clk 0:02:52]} 16. Qxc3 {[%clk 0:02:38.7]} 16... d5 {[%clk
0:02:51.9]} 17. Bxd5 {[%clk 0:02:35.6]} 17... Nxd5 {[%clk 0:02:47]} 18. exd5
{[%clk 0:02:25.8]} 18... Bb7 {[%clk 0:02:42.3]} 19. Nxe5 {[%clk 0:02:16.8]}
19... Nxe5 {[%clk 0:02:39.5]} 20. Qxe5 {[%clk 0:02:15.9]} 20... Bf6 {[%clk
0:02:39.4]} 21. Qe4 {[%clk 0:02:11]} 21... Qd6 {[%clk 0:02:36.8]} 22. Bd4 {[%clk
0:02:05.2]} 22... Bg5+ {[%clk 0:02:16.9]} 23. Kb1 {[%clk 0:02:01.8]} 23... Bxd5
{[%clk 0:02:15.4]} 24. Qg4 {[%clk 0:01:59.8]} 24... Qf4 {[%clk 0:01:51.8]} 25.
Qxf4 {[%clk 0:01:56.3]} 25... Bxf4 {[%clk 0:01:51.6]} 26. Bc5 {[%clk 0:01:51.5]}
26... Rd8 {[%clk 0:01:41.8]} 27. Rhe1 {[%clk 0:01:49.7]} 27... f5 {[%clk
0:01:34.4]} 28. f3 {[%clk 0:01:36.6]} 28... Bxh6 {[%clk 0:01:33.8]} 29. c4
{[%clk 0:01:33.5]} 29... Bd2 {[%clk 0:01:26.8]} 30. Rxd2 {[%clk 0:01:14.2]}
30... Be4+ {[%clk 0:01:26.6]} 31. Kc1 {[%clk 0:01:14.3]} 31... Rc8 {[%clk
0:01:22.7]} 32. fxe4 {[%clk 0:01:12.2]} 32... Rxc5 {[%clk 0:01:22.3]} 33. exf5
{[%clk 0:01:09.8]} 33... gxf5 {[%clk 0:01:14.3]} 34. Rc2 {[%clk 0:01:08]} 34...
Kf7 {[%clk 0:01:12.4]} 35. b4 {[%clk 0:01:07.8]} 35... Rc8 {[%clk 0:01:11.3]}
36. c5 {[%clk 0:01:07.9]} 36... Kf6 {[%clk 0:01:11.2]} 37. c6 {[%clk 0:01:07.9]}
37... Rc7 {[%clk 0:01:10.1]} 38. a4 {[%clk 0:01:07]} 1-0

[Event "*** SCC Grand Prix: Titled Tuesday Blitz"]
[Site "Chess.com"]
[Date "2020.10.06"]
[Round "8"]
[White "Playgood28"]
[Black "Shivagami"]
[Result "0-1"]
[WhiteElo "2292"]
[BlackElo "2222"]
[TimeControl "180+1"]
[EndTime "11:33:45 PDT"]
[Termination "Shivagami won by resignation"]

1. d4 {[%clk 0:03:00.9]} 1... Nf6 {[%clk 0:02:59.4]} 2. c4 {[%clk 0:03:00.7]}
2... c5 {[%clk 0:02:59.6]} 3. d5 {[%clk 0:02:59.4]} 3... e6 {[%clk 0:02:59.5]}
4. Nc3 {[%clk 0:02:58.6]} 4... exd5 {[%clk 0:02:59.9]} 5. cxd5 {[%clk
0:02:58.8]} 5... d6 {[%clk 0:03:00.2]} 6. e4 {[%clk 0:02:59.2]} 6... g6 {[%clk
0:02:55.1]} 7. f4 {[%clk 0:02:58.6]} 7... a6 {[%clk 0:02:54.6]} 8. a4 {[%clk
0:02:56.7]} 8... Bg7 {[%clk 0:02:53.2]} 9. Nf3 {[%clk 0:02:56.8]} 9... O-O
{[%clk 0:02:53.2]} 10. Bd3 {[%clk 0:02:56.4]} 10... Nbd7 {[%clk 0:02:44.1]} 11.
O-O {[%clk 0:02:55.5]} 11... Ne8 {[%clk 0:02:39.1]} 12. Bc4 {[%clk 0:02:44]}
12... Nc7 {[%clk 0:02:39.1]} 13. e5 {[%clk 0:02:31.2]} 13... dxe5 {[%clk
0:02:29.9]} 14. d6 {[%clk 0:02:30.5]} 14... Ne6 {[%clk 0:02:26.5]} 15. fxe5
{[%clk 0:01:52.5]} 15... Nxe5 {[%clk 0:02:18.9]} 16. Nxe5 {[%clk 0:01:51.1]}
16... Bxe5 {[%clk 0:02:16.9]} 17. Nd5 {[%clk 0:01:37.2]} 17... Qh4 {[%clk
0:02:10.9]} 18. Ne7+ {[%clk 0:01:32.2]} 18... Kh8 {[%clk 0:02:08.2]} 19. Bxe6
{[%clk 0:01:19.4]} 19... Bxh2+ {[%clk 0:02:03.4]} 20. Kh1 {[%clk 0:01:18.9]}
20... Bxe6 {[%clk 0:01:57.6]} 21. Rf3 {[%clk 0:00:41.4]} 21... Bg3+ {[%clk
0:01:24.9]} 22. Kg1 {[%clk 0:00:39.9]} 22... Qh2+ {[%clk 0:01:25.1]} 23. Kf1
{[%clk 0:00:39.6]} 23... Bc4+ {[%clk 0:01:21.9]} 24. Rd3 {[%clk 0:00:34.4]}
24... Qh1+ {[%clk 0:01:17.8]} 25. Ke2 {[%clk 0:00:34.1]} 25... Qxg2+ {[%clk
0:01:17.8]} 26. Ke3 {[%clk 0:00:33.1]} 26... Qf2+ {[%clk 0:01:15.1]} 27. Ke4
{[%clk 0:00:32.4]} 27... f5+ {[%clk 0:01:15.1]} 0-1

[Event "*** SCC Grand Prix: Titled Tuesday Blitz"]
[Site "Chess.com"]
[Date "2020.10.06"]
[Round "8"]
[White "frederiksvane"]
[Black "crescentmoon2411"]
[Result "1-0"]
[WhiteElo "2685"]
[BlackElo "2789"]
[TimeControl "180+1"]
[EndTime "11:33:47 PDT"]
[Termination "frederiksvane won on time"]

1. e4 {[%clk 0:03:00.9]} 1... e6 {[%clk 0:03:00]} 2. d4 {[%clk 0:03:00.9]} 2...
d5 {[%clk 0:03:00.5]} 3. Nd2 {[%clk 0:03:01.5]} 3... c6 {[%clk 0:03:00]} 4. Ngf3
{[%clk 0:02:55.3]} 4... Nd7 {[%clk 0:02:54.2]} 5. Bd3 {[%clk 0:02:54.4]} 5...
dxe4 {[%clk 0:02:49.1]} 6. Nxe4 {[%clk 0:02:55.3]} 6... Ngf6 {[%clk 0:02:49.6]}
7. c3 {[%clk 0:02:49.2]} 7... Nxe4 {[%clk 0:02:47.9]} 8. Bxe4 {[%clk 0:02:50.1]}
8... Bd6 {[%clk 0:02:48]} 9. O-O {[%clk 0:02:49.5]} 9... h6 {[%clk 0:02:44.9]}
10. Qe2 {[%clk 0:02:42.5]} 10... O-O {[%clk 0:02:42.1]} 11. Re1 {[%clk
0:02:42.7]} 11... Re8 {[%clk 0:02:42.2]} 12. Be3 {[%clk 0:02:34.4]} 12... Qc7
{[%clk 0:02:35.1]} 13. Rad1 {[%clk 0:02:33.2]} 13... e5 {[%clk 0:02:09.5]} 14.
h3 {[%clk 0:02:00.6]} 14... Nf6 {[%clk 0:01:56.2]} 15. dxe5 {[%clk 0:01:59.3]}
15... Bxe5 {[%clk 0:01:48.1]} 16. Bb1 {[%clk 0:01:49]} 16... Bd7 {[%clk
0:00:53.4]} 17. Qd2 {[%clk 0:01:35.1]} 17... Rad8 {[%clk 0:00:28.9]} 18. Bxh6
{[%clk 0:01:34.2]} 18... gxh6 {[%clk 0:00:05.7]} 19. Qxh6 {[%clk 0:01:35.1]}
19... Bc8 {[%clk 0:00:03.3]} 20. Rxd8 {[%clk 0:01:27.7]} 20... Qxd8 {[%clk
0:00:04.2]} 21. Nxe5 {[%clk 0:01:26.3]} 21... Qd6 {[%clk 0:00:02.4]} 22. Bh7+
{[%clk 0:01:25.1]} 1-0

[Event "*** SCC Grand Prix: Titled Tuesday Blitz"]
[Site "Chess.com"]
[Date "2020.10.06"]
[Round "8"]
[White "Butterfly"]
[Black "m_ezat"]
[Result "0-1"]
[WhiteElo "2406"]
[BlackElo "2558"]
[TimeControl "180+1"]
[EndTime "11:34:02 PDT"]
[Termination "m_ezat won by resignation"]

1. d4 {[%clk 0:03:00.9]} 1... Nf6 {[%clk 0:02:58.7]} 2. Nf3 {[%clk 0:02:58.8]}
2... g6 {[%clk 0:02:58.4]} 3. Nbd2 {[%clk 0:02:57.3]} 3... d5 {[%clk 0:02:57.5]}
4. e3 {[%clk 0:02:56.5]} 4... Bg7 {[%clk 0:02:57.1]} 5. b4 {[%clk 0:02:55.1]}
5... O-O {[%clk 0:02:57.7]} 6. Bd3 {[%clk 0:02:54.3]} 6... a5 {[%clk 0:02:56.3]}
7. b5 {[%clk 0:02:53.5]} 7... c5 {[%clk 0:02:56.9]} 8. bxc6 {[%clk 0:02:50.2]}
8... Nxc6 {[%clk 0:02:54.7]} 9. c4 {[%clk 0:02:40.4]} 9... Bg4 {[%clk
0:02:48.3]} 10. h3 {[%clk 0:02:36.8]} 10... Bxf3 {[%clk 0:02:45.9]} 11. Nxf3
{[%clk 0:02:36.2]} 11... e5 {[%clk 0:02:35.4]} 12. Nxe5 {[%clk 0:01:56.4]} 12...
Nxe5 {[%clk 0:02:32.3]} 13. dxe5 {[%clk 0:01:56.9]} 13... Nd7 {[%clk 0:02:31]}
14. f4 {[%clk 0:01:57.4]} 14... dxc4 {[%clk 0:02:24.9]} 15. Bxc4 {[%clk
0:01:54.6]} 15... Qh4+ {[%clk 0:02:23.8]} 16. Kf1 {[%clk 0:01:45.4]} 16... Nxe5
{[%clk 0:02:23.7]} 17. g3 {[%clk 0:01:42.7]} 17... Qxg3 {[%clk 0:02:07.8]} 18.
fxe5 {[%clk 0:01:41.9]} 18... Rac8 {[%clk 0:01:58.4]} 19. Ba3 {[%clk 0:01:20.1]}
19... Rxc4 {[%clk 0:01:50.4]} 20. Bxf8 {[%clk 0:01:18.9]} 20... Qxe3 {[%clk
0:01:50.1]} 21. Rh2 {[%clk 0:00:49.6]} 21... Bxf8 {[%clk 0:01:40.4]} 22. Kg2
{[%clk 0:00:19.8]} 22... Qe4+ {[%clk 0:01:38.5]} 23. Kf1 {[%clk 0:00:17.1]}
23... Rc3 {[%clk 0:01:22.6]} 24. Rf2 {[%clk 0:00:15.8]} 24... Rxh3 {[%clk
0:01:08.3]} 0-1

[Event "*** SCC Grand Prix: Titled Tuesday Blitz"]
[Site "Chess.com"]
[Date "2020.10.06"]
[Round "8"]
[White "albi1999"]
[Black "parnali1611"]
[Result "1-0"]
[WhiteElo "2594"]
[BlackElo "2152"]
[TimeControl "180+1"]
[EndTime "11:34:19 PDT"]
[Termination "albi1999 won on time"]

1. d4 {[%clk 0:02:57.8]} 1... Nf6 {[%clk 0:02:58.9]} 2. c4 {[%clk 0:02:55.5]}
2... g6 {[%clk 0:02:58.3]} 3. g3 {[%clk 0:02:54.3]} 3... Bg7 {[%clk 0:02:52.2]}
4. Bg2 {[%clk 0:02:54.1]} 4... O-O {[%clk 0:02:51.4]} 5. Nc3 {[%clk 0:02:54.4]}
5... d6 {[%clk 0:02:50.7]} 6. Nf3 {[%clk 0:02:55]} 6... c5 {[%clk 0:02:50.3]} 7.
O-O {[%clk 0:02:54.3]} 7... Nc6 {[%clk 0:02:50]} 8. dxc5 {[%clk 0:02:54.8]} 8...
dxc5 {[%clk 0:02:49.7]} 9. Bf4 {[%clk 0:02:55.4]} 9... Bf5 {[%clk 0:02:45.7]}
10. Ne5 {[%clk 0:02:51]} 10... Nxe5 {[%clk 0:02:44]} 11. Bxe5 {[%clk 0:02:51.9]}
11... Qc8 {[%clk 0:02:38]} 12. Qb3 {[%clk 0:02:49.3]} 12... b6 {[%clk 0:02:20]}
13. Bxa8 {[%clk 0:02:46]} 13... Qxa8 {[%clk 0:02:18.2]} 14. f3 {[%clk
0:02:46.4]} 14... Bh3 {[%clk 0:02:07.6]} 15. Rfd1 {[%clk 0:02:45.2]} 15... h5
{[%clk 0:02:04.2]} 16. Nd5 {[%clk 0:02:32.5]} 16... Qb7 {[%clk 0:01:36.7]} 17.
Qc3 {[%clk 0:02:20.4]} 17... Nxd5 {[%clk 0:01:28.7]} 18. cxd5 {[%clk 0:01:58.7]}
18... f6 {[%clk 0:01:25.1]} 19. Bf4 {[%clk 0:01:58.7]} 19... g5 {[%clk
0:01:20.5]} 20. Be3 {[%clk 0:01:58.6]} 20... f5 {[%clk 0:01:13.6]} 21. Qd2
{[%clk 0:01:58.7]} 21... f4 {[%clk 0:01:11.7]} 22. gxf4 {[%clk 0:01:58.3]} 22...
gxf4 {[%clk 0:01:08.8]} 23. Bxf4 {[%clk 0:01:56.8]} 23... Bd4+ {[%clk
0:00:19.1]} 24. Kh1 {[%clk 0:01:56]} 24... Qxd5 {[%clk 0:00:16.8]} 25. Rg1+
{[%clk 0:01:53.6]} 25... Kh8 {[%clk 0:00:15.5]} 26. Bh6 {[%clk 0:01:47.9]} 26...
Rf5 {[%clk 0:00:13.8]} 27. e4 {[%clk 0:01:41.6]} 27... Qc6 {[%clk 0:00:13.5]}
28. Rg3 {[%clk 0:01:34.5]} 28... Rxf3 {[%clk 0:00:07.4]} 29. Rxf3 {[%clk
0:01:30.3]} 29... Qxe4 {[%clk 0:00:07.3]} 30. Qd3 {[%clk 0:01:30.7]} 30... Bf5
{[%clk 0:00:05.3]} 31. Qxe4 {[%clk 0:01:27.4]} 31... Bxe4 {[%clk 0:00:06.2]} 32.
Kg2 {[%clk 0:01:27]} 32... h4 {[%clk 0:00:05.3]} 33. h3 {[%clk 0:01:26.8]} 33...
Kh7 {[%clk 0:00:02.5]} 34. Bg5 {[%clk 0:01:26.3]} 1-0

[Event "*** SCC Grand Prix: Titled Tuesday Blitz"]
[Site "Chess.com"]
[Date "2020.10.06"]
[Round "8"]
[White "barriochess"]
[Black "Nikolaj_6"]
[Result "1-0"]
[WhiteElo "2340"]
[BlackElo "2529"]
[TimeControl "180+1"]
[EndTime "11:34:20 PDT"]
[Termination "barriochess won by resignation"]

1. d4 {[%clk 0:03:00.9]} 1... Nf6 {[%clk 0:02:58.2]} 2. c4 {[%clk 0:03:01]} 2...
c5 {[%clk 0:02:58.1]} 3. d5 {[%clk 0:03:00.9]} 3... e6 {[%clk 0:02:58.7]} 4. Nc3
{[%clk 0:03:00.4]} 4... exd5 {[%clk 0:02:59.1]} 5. cxd5 {[%clk 0:03:01.3]} 5...
d6 {[%clk 0:02:58.8]} 6. e4 {[%clk 0:03:01.6]} 6... g6 {[%clk 0:02:59.1]} 7. f4
{[%clk 0:03:01.2]} 7... Bg7 {[%clk 0:02:58.8]} 8. Nf3 {[%clk 0:03:01.4]} 8...
O-O {[%clk 0:02:58.4]} 9. Be2 {[%clk 0:03:01.6]} 9... Bg4 {[%clk 0:02:58.1]} 10.
O-O {[%clk 0:03:00.3]} 10... Nbd7 {[%clk 0:02:56.8]} 11. h3 {[%clk 0:02:55.6]}
11... Bxf3 {[%clk 0:02:56.7]} 12. Bxf3 {[%clk 0:02:56.5]} 12... c4 {[%clk
0:02:51.3]} 13. Be3 {[%clk 0:02:52.1]} 13... Rc8 {[%clk 0:02:46.3]} 14. g4
{[%clk 0:02:48.2]} 14... h6 {[%clk 0:02:40.9]} 15. Qd2 {[%clk 0:02:44.3]} 15...
Re8 {[%clk 0:02:38.5]} 16. Rad1 {[%clk 0:02:17.9]} 16... Nc5 {[%clk 0:02:36.4]}
17. Bxc5 {[%clk 0:02:12.9]} 17... Rxc5 {[%clk 0:02:35.7]} 18. Rfe1 {[%clk
0:02:09]} 18... Nd7 {[%clk 0:02:31.7]} 19. Qf2 {[%clk 0:02:04.7]} 19... b5
{[%clk 0:02:27]} 20. e5 {[%clk 0:02:02.2]} 20... dxe5 {[%clk 0:02:24.9]} 21. f5
{[%clk 0:02:02.3]} 21... Qb6 {[%clk 0:01:46.7]} 22. Ne4 {[%clk 0:02:01.6]} 22...
Rc7 {[%clk 0:01:46.2]} 23. d6 {[%clk 0:01:55.6]} 23... Qxf2+ {[%clk 0:01:38.3]}
24. Kxf2 {[%clk 0:01:56.5]} 24... Rcc8 {[%clk 0:01:35.7]} 25. fxg6 {[%clk
0:01:43.2]} 25... fxg6 {[%clk 0:01:35.3]} 26. Nc3 {[%clk 0:01:43.5]} 26... b4
{[%clk 0:01:26.7]} 27. Bd5+ {[%clk 0:01:38.3]} 27... Kh7 {[%clk 0:01:26.3]} 28.
Nb5 {[%clk 0:01:33.4]} 28... Rc5 {[%clk 0:01:16]} 29. Nc7 {[%clk 0:01:31.3]}
29... Rb8 {[%clk 0:01:02.6]} 30. Ne6 {[%clk 0:01:25]} 30... Ra5 {[%clk 0:01:00]}
31. Bxc4 {[%clk 0:01:23.4]} 31... e4 {[%clk 0:00:59.2]} 32. Rxe4 {[%clk
0:01:19.5]} 32... Bxb2 {[%clk 0:00:58.5]} 33. Bb3 {[%clk 0:01:14.9]} 33... Bc3
{[%clk 0:00:43]} 34. Rc4 {[%clk 0:01:10.4]} 34... Rb7 {[%clk 0:00:22.9]} 35. Rc7
{[%clk 0:01:08.7]} 35... Rab5 {[%clk 0:00:23.1]} 36. Rxd7+ {[%clk 0:01:07]}
36... Rxd7 {[%clk 0:00:22.7]} 37. Nf8+ {[%clk 0:01:07.3]} 1-0

[Event "*** SCC Grand Prix: Titled Tuesday Blitz"]
[Site "Chess.com"]
[Date "2020.10.06"]
[Round "8"]
[White "Happy1712Drummer"]
[Black "NotFischer"]
[Result "1-0"]
[WhiteElo "2396"]
[BlackElo "2272"]
[TimeControl "180+1"]
[EndTime "11:34:20 PDT"]
[Termination "Happy1712Drummer won by checkmate"]

1. d4 {[%clk 0:03:00.9]} 1... Nf6 {[%clk 0:02:59.2]} 2. Nf3 {[%clk 0:03:00.9]}
2... e6 {[%clk 0:02:59.3]} 3. e3 {[%clk 0:03:01.8]} 3... d5 {[%clk 0:02:59.2]}
4. b3 {[%clk 0:02:58.5]} 4... Be7 {[%clk 0:02:58.4]} 5. Bb2 {[%clk 0:02:59]}
5... O-O {[%clk 0:02:58.5]} 6. Nbd2 {[%clk 0:02:59.5]} 6... c5 {[%clk
0:02:58.8]} 7. a3 {[%clk 0:02:58.9]} 7... Nbd7 {[%clk 0:02:59.2]} 8. Bd3 {[%clk
0:02:59.3]} 8... b6 {[%clk 0:02:59.7]} 9. Ne5 {[%clk 0:02:57.8]} 9... Nxe5
{[%clk 0:02:54]} 10. dxe5 {[%clk 0:02:55.8]} 10... Nd7 {[%clk 0:02:54]} 11. f4
{[%clk 0:02:52]} 11... g6 {[%clk 0:02:53.8]} 12. Qf3 {[%clk 0:02:49.2]} 12...
Bb7 {[%clk 0:02:53.7]} 13. h4 {[%clk 0:02:45.9]} 13... Qc7 {[%clk 0:02:46.6]}
14. h5 {[%clk 0:02:44.9]} 14... c4 {[%clk 0:02:40.3]} 15. hxg6 {[%clk
0:02:33.9]} 15... fxg6 {[%clk 0:02:37.4]} 16. Qh3 {[%clk 0:02:30.4]} 16... Rf7
{[%clk 0:02:33.2]} 17. Bxg6 {[%clk 0:02:27.2]} 17... Nf8 {[%clk 0:01:43.4]} 18.
Bxf7+ {[%clk 0:02:22.2]} 18... Kxf7 {[%clk 0:01:44.3]} 19. Qh5+ {[%clk
0:02:21.7]} 19... Kg8 {[%clk 0:01:44.2]} 20. Bd4 {[%clk 0:02:10]} 20... cxb3
{[%clk 0:01:25.6]} 21. cxb3 {[%clk 0:02:03.8]} 21... Qc2 {[%clk 0:01:23.6]} 22.
f5 {[%clk 0:01:07.8]} 22... exf5 {[%clk 0:01:04.4]} 23. e6 {[%clk 0:01:03.7]}
23... Nxe6 {[%clk 0:00:20.6]} 24. Qxh7+ {[%clk 0:01:01.6]} 24... Kf8 {[%clk
0:00:21.2]} 25. Qg6 {[%clk 0:01:02]} 25... Nxd4 {[%clk 0:00:06.9]} 26. Rh8#
{[%clk 0:00:59.5]} 1-0

[Event "*** SCC Grand Prix: Titled Tuesday Blitz"]
[Site "Chess.com"]
[Date "2020.10.06"]
[Round "8"]
[White "doons21"]
[Black "Das_Virus_2020"]
[Result "0-1"]
[WhiteElo "2570"]
[BlackElo "2398"]
[TimeControl "180+1"]
[EndTime "11:34:22 PDT"]
[Termination "Das_Virus_2020 won by checkmate"]

1. e4 {[%clk 0:03:00.9]} 1... e6 {[%clk 0:02:59.7]} 2. d3 {[%clk 0:03:00.6]}
2... d5 {[%clk 0:02:59.7]} 3. Nd2 {[%clk 0:03:01.2]} 3... Nf6 {[%clk 0:02:59.1]}
4. Ngf3 {[%clk 0:03:01]} 4... Bc5 {[%clk 0:02:58.7]} 5. Be2 {[%clk 0:03:01.3]}
5... O-O {[%clk 0:02:51.7]} 6. O-O {[%clk 0:03:01.7]} 6... b6 {[%clk 0:02:50.1]}
7. e5 {[%clk 0:03:00.8]} 7... Nfd7 {[%clk 0:02:49.6]} 8. d4 {[%clk 0:03:01.1]}
8... Be7 {[%clk 0:02:50.1]} 9. c3 {[%clk 0:03:01.3]} 9... Ba6 {[%clk 0:02:48.7]}
10. Bxa6 {[%clk 0:02:58.6]} 10... Nxa6 {[%clk 0:02:48.3]} 11. Re1 {[%clk
0:02:57.7]} 11... c5 {[%clk 0:02:47]} 12. Qe2 {[%clk 0:02:58.1]} 12... Qc8
{[%clk 0:02:46.3]} 13. Nf1 {[%clk 0:02:57.8]} 13... cxd4 {[%clk 0:02:43.4]} 14.
cxd4 {[%clk 0:02:58.3]} 14... Nb4 {[%clk 0:02:43.1]} 15. Bg5 {[%clk 0:02:58]}
15... Bxg5 {[%clk 0:02:19.7]} 16. Nxg5 {[%clk 0:02:57.5]} 16... Qc4 {[%clk
0:02:19.8]} 17. Qh5 {[%clk 0:02:27.9]} 17... h6 {[%clk 0:02:19.1]} 18. Nf3
{[%clk 0:02:28]} 18... Nc2 {[%clk 0:02:01.4]} 19. Rac1 {[%clk 0:02:19.7]} 19...
Rac8 {[%clk 0:01:55.2]} 20. g4 {[%clk 0:01:44.1]} 20... Qd3 {[%clk 0:01:47.1]}
21. Rxc2 {[%clk 0:01:40.5]} 21... Rxc2 {[%clk 0:01:32.7]} 22. Ne3 {[%clk
0:01:40.5]} 22... Rxb2 {[%clk 0:01:04.9]} 23. g5 {[%clk 0:01:40.2]} 23... Qh7
{[%clk 0:01:03.3]} 24. Kh1 {[%clk 0:01:32]} 24... Rb1 {[%clk 0:01:00.3]} 25. Ng4
{[%clk 0:01:12]} 25... Rxe1+ {[%clk 0:00:57.1]} 26. Nxe1 {[%clk 0:01:12.9]}
26... Rc8 {[%clk 0:00:35.3]} 27. Nf3 {[%clk 0:01:05.9]} 27... hxg5 {[%clk
0:00:26.3]} 28. Qxg5 {[%clk 0:01:05.7]} 28... Qg6 {[%clk 0:00:20.6]} 29. Qh4
{[%clk 0:01:04.2]} 29... Nf8 {[%clk 0:00:18.8]} 30. Ng5 {[%clk 0:01:00.7]} 30...
Nh7 {[%clk 0:00:18.3]} 31. Nh3 {[%clk 0:01:00.4]} 31... Qe4+ {[%clk 0:00:17.4]}
32. Kg1 {[%clk 0:00:59.9]} 32... Rc1# {[%clk 0:00:16.6]} 0-1